[Event "Rapid Tournament (RAP)"]
[Site "Biel, Switzerland"]
[Date "2026.07.12"]
[Round "4.8"]
[White "Kozak, Adam"]
[Black "Xu, Chang(Cq)"]
[Result "1/2-1/2"]
[TimeControl "15 + 5"]
[WhiteTitle "-"]
[BlackTitle "-"]
[WhiteFideId "753246"]
[BlackFideId "8641757"]
[WhiteElo "2592"]
[BlackElo "2082"]

1. d4 {[%clk 00:15:07]} {[%emt 00:00:01]} Nf6 {[%clk 00:15:08]} {[%emt
00:00:02]} 2. c4 {[%clk 00:15:11]} {[%emt 00:00:04]} e6 {[%clk 00:15:11]} 3.
Nc3 {[%clk 00:15:14]} {[%emt 00:00:01]} Bb4 {[%clk 00:15:14]} {[%emt 00:00:03]}
4. e3 {[%clk 00:15:18]} {[%emt 00:00:04]} O-O {[%clk 00:15:15]} {[%emt
00:00:02]} 5. Bd3 {[%clk 00:15:21]} {[%emt 00:00:02]} d5 {[%clk 00:15:17]}
{[%emt 00:00:02]} 6. a3 {[%clk 00:15:25]} {[%emt 00:00:02]} Bxc3+ {[%clk
00:15:12]} {[%emt 00:00:10]} 7. bxc3 {[%clk 00:15:28]} {[%emt 00:00:02]} dxc4
{[%clk 00:15:08]} {[%emt 00:00:09]} 8. Bxc4 {[%clk 00:15:31]} {[%emt 00:00:02]}
c5 {[%clk 00:15:09]} {[%emt 00:00:04]} 9. Ne2 {[%clk 00:15:33]} {[%emt
00:00:02]} Qc7 {[%clk 00:15:08]} {[%emt 00:00:06]} 10. Ba2 {[%clk 00:15:37]}
{[%emt 00:00:02]} Nc6 {[%clk 00:13:43]} {[%emt 00:01:30]} 11. O-O {[%clk
00:15:37]} {[%emt 00:00:04]} Rd8 {[%clk 00:13:12]} {[%emt 00:00:36]} 12. Ng3
{[%clk 00:15:17]} {[%emt 00:00:25]} b6 {[%clk 00:12:54]} {[%emt 00:00:23]} 13.
Re1 {[%clk 00:15:17]} {[%emt 00:00:05]} Bb7 {[%clk 00:12:38]} {[%emt 00:00:21]}
14. Bb2 {[%clk 00:15:09]} {[%emt 00:00:13]} Rac8 {[%clk 00:11:32]} {[%emt
00:01:12]} 15. e4 {[%clk 00:14:34]} {[%emt 00:00:40]} cxd4 {[%clk 00:10:02]}
{[%emt 00:01:35]} 16. cxd4 {[%clk 00:14:34]} {[%emt 00:00:05]} Nxd4 {[%clk
00:08:33]} {[%emt 00:01:34]} 17. Rc1 {[%clk 00:09:18]} {[%emt 00:05:21]} Qd7
{[%clk 00:06:15]} {[%emt 00:02:23]} 18. Rxc8 {[%clk 00:09:13]} {[%emt
00:00:09]} Bxc8 {[%clk 00:06:17]} {[%emt 00:00:03]} 19. e5 {[%clk 00:08:45]}
{[%emt 00:00:34]} Ne8 {[%clk 00:04:53]} {[%emt 00:01:28]} 20. Qg4 {[%clk
00:07:49]} {[%emt 00:01:01]} Nf5 {[%clk 00:03:28]} {[%emt 00:01:31]} 21. Nxf5
{[%clk 00:05:50]} {[%emt 00:02:04]} exf5 {[%clk 00:03:29]} {[%emt 00:00:03]} 22.
Qc4 {[%clk 00:05:30]} {[%emt 00:00:26]} Qe7 {[%clk 00:03:18]} {[%emt 00:00:16]}
23. Bb1 {[%clk 00:04:09]} {[%emt 00:01:26]} Be6 {[%clk 00:03:16]} {[%emt
00:00:07]} 24. Qf4 {[%clk 00:04:12]} {[%emt 00:00:02]} Qd7 {[%clk 00:02:54]}
{[%emt 00:00:27]} 25. Bc1 {[%clk 00:03:40]} {[%emt 00:00:36]} Qd4 {[%clk
00:02:43]} {[%emt 00:00:17]} 26. Qg3 {[%clk 00:03:01]} {[%emt 00:00:44]} Qg4
{[%clk 00:02:41]} {[%emt 00:00:07]} 27. Qc3 {[%clk 00:02:07]} {[%emt 00:00:58]}
Rc8 {[%clk 00:02:10]} {[%emt 00:00:36]} 28. Qd2 {[%clk 00:01:52]} {[%emt
00:00:20]} Nc7 {[%clk 00:01:46]} {[%emt 00:00:30]} 29. h3 {[%clk 00:01:48]}
{[%emt 00:00:09]} Qc4 {[%clk 00:01:42]} {[%emt 00:00:06]} 30. Bb2 {[%clk
00:01:23]} {[%emt 00:00:33]} Qd5 {[%clk 00:01:17]} {[%emt 00:00:29]} 31. Qe2
{[%clk 00:00:49]} {[%emt 00:00:39]} Rd8 {[%clk 00:01:14]} {[%emt 00:00:08]} 32.
Bc1 {[%clk 00:00:13]} {[%emt 00:00:42]} Qd7 {[%clk 00:01:07]} {[%emt 00:00:12]}
33. Bg5 {[%clk 00:00:15]} {[%emt 00:00:03]} Rc8 {[%clk 00:01:06]} {[%emt
00:00:06]} 34. Rd1 {[%clk 00:00:14]} {[%emt 00:00:06]} Nd5 {[%clk 00:01:07]}
{[%emt 00:00:03]} 35. Qf3 {[%clk 00:00:15]} {[%emt 00:00:04]} h6 {[%clk
00:00:38]} {[%emt 00:00:35]} 36. Be3 {[%clk 00:00:13]} {[%emt 00:00:07]} Qc6
{[%clk 00:00:32]} {[%emt 00:00:11]} 37. Bxf5 {[%clk 00:00:12]} {[%emt
00:00:06]} Bxf5 {[%clk 00:00:25]} {[%emt 00:00:13]} 38. Qxf5 {[%clk 00:00:08]}
{[%emt 00:00:09]} Nxe3 {[%clk 00:00:18]} {[%emt 00:00:12]} 39. fxe3 {[%clk
00:00:11]} Rf8 {[%clk 00:00:13]} {[%emt 00:00:10]} 40. Kh1 {[%clk 00:00:07]}
{[%emt 00:00:09]} Qc5 {[%clk 00:00:13]} {[%emt 00:00:05]} 41. e4 {[%clk
00:00:07]} {[%emt 00:00:05]} Qxa3 {[%clk 00:00:14]} {[%emt 00:00:04]} 42. e6
{[%clk 00:00:08]} {[%emt 00:00:04]} fxe6 {[%clk 00:00:12]} {[%emt 00:00:07]} 43.
Qxe6+ {[%clk 00:00:12]} Kh8 {[%clk 00:00:16]} {[%emt 00:00:01]} 44. e5 {[%clk
00:00:12]} {[%emt 00:00:05]} Qa4 {[%clk 00:00:13]} {[%emt 00:00:08]} 45. Qd6
{[%clk 00:00:10]} {[%emt 00:00:07]} Re8 {[%clk 00:00:09]} {[%emt 00:00:09]} 46.
Re1 {[%clk 00:00:13]} {[%emt 00:00:02]} Qa5 {[%clk 00:00:10]} {[%emt 00:00:04]}
47. Re4 {[%clk 00:00:07]} {[%emt 00:00:11]} Qc5 {[%clk 00:00:14]} {[%emt
00:00:01]} 48. Qd7 {[%clk 00:00:06]} {[%emt 00:00:06]} Qe7 {[%clk 00:00:16]}
{[%emt 00:00:03]} 49. Qd4 {[%clk 00:00:08]} {[%emt 00:00:02]} Qe6 {[%clk
00:00:16]} {[%emt 00:00:05]} 50. Re3 {[%clk 00:00:09]} {[%emt 00:00:05]} a5
{[%clk 00:00:13]} {[%emt 00:00:08]} 51. Kh2 {[%clk 00:00:12]} b5 {[%clk
00:00:16]} {[%emt 00:00:02]} 52. Qc5 {[%clk 00:00:16]} {[%emt 00:00:02]} Rb8
{[%clk 00:00:11]} {[%emt 00:00:10]} 53. Qc7 {[%clk 00:00:06]} {[%emt 00:00:15]}
Qb6 {[%emt 00:00:05]} 54. Qc1 {[%clk 00:00:10]} Re8 {[%clk 00:00:11]} {[%emt
00:00:04]} 55. e6 {[%clk 00:00:07]} {[%emt 00:00:09]} Qd6+ {[%clk 00:00:10]}
{[%emt 00:00:07]} 56. Kh1 {[%clk 00:00:10]} {[%emt 00:00:01]} b4 {[%clk
00:00:11]} {[%emt 00:00:05]} 57. Qc4 {[%clk 00:00:09]} {[%emt 00:00:06]} a4
{[%clk 00:00:10]} {[%emt 00:00:06]} 58. Re4 {[%clk 00:00:06]} {[%emt 00:00:07]}
Qd1+ {[%clk 00:00:08]} {[%emt 00:00:08]} 59. Kh2 {[%clk 00:00:10]} Qd6+ {[%clk
00:00:11]} {[%emt 00:00:01]} 60. Kh1 {[%clk 00:00:14]} Qd1+ {[%clk 00:00:14]}
{[%emt 00:00:03]} 61. Kh2 {[%emt 00:00:02]} Qd6+ {[%clk 00:00:18]} 62. Kh1
{[%emt 00:00:13]} 1/2-1/2

[Event "Rapid Tournament (RAP)"]
[Site "Biel, Switzerland"]
[Date "2026.07.12"]
[Round "4.9"]
[White "Ling, Chenxuan"]
[Black "Aronyak, Ghosh"]
[Result "0-1"]
[TimeControl "15 + 5"]
[WhiteTitle "-"]
[BlackTitle "-"]
[WhiteFideId "30983118"]
[BlackFideId "25072846"]
[WhiteElo "2077"]
[BlackElo "2482"]

1. d4 {[%clk 00:15:08]} Nf6 {[%clk 00:15:04]} {[%emt 00:00:07]} 2. c4 {[%clk
00:15:10]} {[%emt 00:00:02]} e6 {[%clk 00:15:08]} {[%emt 00:00:01]} 3. Nc3
{[%clk 00:15:10]} {[%emt 00:00:05]} Bb4 {[%clk 00:15:10]} {[%emt 00:00:03]} 4.
Qc2 {[%clk 00:15:11]} {[%emt 00:00:04]} O-O {[%clk 00:14:24]} {[%emt 00:00:51]}
5. e4 {[%clk 00:15:14]} {[%emt 00:00:02]} d6 {[%clk 00:14:27]} {[%emt
00:00:02]} 6. Nf3 {[%clk 00:15:11]} {[%emt 00:00:08]} e5 {[%clk 00:14:02]}
{[%emt 00:00:30]} 7. d5 {[%clk 00:15:08]} {[%emt 00:00:08]} Bxc3+ {[%clk
00:13:52]} {[%emt 00:00:15]} 8. bxc3 {[%clk 00:15:11]} {[%emt 00:00:02]} Na6
{[%clk 00:13:54]} {[%emt 00:00:03]} 9. Bd3 {[%clk 00:15:04]} {[%emt 00:00:12]}
Nd7 {[%clk 00:13:51]} {[%emt 00:00:09]} 10. O-O {[%clk 00:15:01]} {[%emt
00:00:07]} Ndc5 {[%clk 00:13:54]} {[%emt 00:00:02]} 11. Be3 {[%clk 00:14:50]}
{[%emt 00:00:15]} f5 {[%clk 00:13:46]} {[%emt 00:00:13]} 12. exf5 {[%clk
00:14:29]} {[%emt 00:00:27]} Nxd3 {[%clk 00:13:41]} {[%emt 00:00:10]} 13. Qxd3
{[%clk 00:14:32]} {[%emt 00:00:01]} Bxf5 {[%clk 00:13:44]} {[%emt 00:00:03]} 14.
Qd2 {[%clk 00:14:35]} {[%emt 00:00:02]} b6 {[%clk 00:13:35]} {[%emt 00:00:14]}
15. a4 {[%clk 00:14:04]} {[%emt 00:00:36]} Nc5 {[%clk 00:13:13]} {[%emt
00:00:27]} 16. Qa2 {[%clk 00:13:21]} {[%emt 00:00:48]} a5 {[%clk 00:12:54]}
{[%emt 00:00:24]} 17. Nd2 {[%clk 00:13:19]} {[%emt 00:00:07]} Nd3 {[%clk
00:12:12]} {[%emt 00:00:47]} 18. f3 {[%clk 00:12:34]} {[%emt 00:00:49]} Qh4
{[%clk 00:12:13]} {[%emt 00:00:05]} 19. Qb3 {[%clk 00:12:01]} {[%emt 00:00:38]}
h6 {[%clk 00:11:03]} {[%emt 00:01:14]} 20. Qd1 {[%clk 00:11:40]} {[%emt
00:00:26]} Rae8 {[%clk 00:10:37]} {[%emt 00:00:31]} 21. g3 {[%clk 00:09:54]}
{[%emt 00:01:52]} Qf6 {[%clk 00:10:13]} {[%emt 00:00:29]} 22. Ne4 {[%clk
00:08:36]} {[%emt 00:01:23]} Bxe4 {[%clk 00:10:15]} {[%emt 00:00:03]} 23. fxe4
{[%clk 00:08:40]} Qxf1+ {[%clk 00:10:17]} 24. Qxf1 {[%clk 00:08:44]} {[%emt
00:00:04]} Rxf1+ {[%clk 00:10:20]} {[%emt 00:00:02]} 25. Kxf1 {[%clk 00:08:46]}
{[%emt 00:00:03]} Nb2 {[%clk 00:09:03]} {[%emt 00:01:21]} 26. Ke2 {[%clk
00:08:33]} {[%emt 00:00:18]} Nxc4 {[%clk 00:08:45]} {[%emt 00:00:23]} 27. Kd3
{[%clk 00:08:36]} {[%emt 00:00:02]} Nxe3 {[%clk 00:08:46]} {[%emt 00:00:05]} 28.
Kxe3 {[%clk 00:08:40]} Rf8 {[%clk 00:08:19]} {[%emt 00:00:32]} 29. c4 {[%clk
00:08:18]} {[%emt 00:00:27]} Rf6 {[%clk 00:07:54]} {[%emt 00:00:29]} 30. Rb1
{[%clk 00:08:05]} {[%emt 00:00:19]} Kf7 {[%clk 00:07:55]} {[%emt 00:00:03]} 31.
Rc1 {[%emt 00:00:21]} g5 {[%clk 00:07:55]} 32. Ke2 {[%clk 00:07:19]} {[%emt
00:00:40]} g4 {[%clk 00:07:40]} {[%emt 00:00:20]} 33. Rc3 {[%clk 00:03:44]}
{[%emt 00:03:40]} Ke7 {[%clk 00:07:37]} {[%emt 00:00:09]} 34. Rb3 {[%clk
00:03:43]} {[%emt 00:00:06]} Kd7 {[%clk 00:07:34]} {[%emt 00:00:07]} 35. Ke1
{[%clk 00:03:44]} {[%emt 00:00:04]} Kc8 {[%clk 00:07:24]} {[%emt 00:00:15]} 36.
Ke2 {[%clk 00:03:35]} {[%emt 00:00:15]} Rf7 {[%clk 00:07:24]} {[%emt 00:00:04]}
37. Ke1 {[%clk 00:03:07]} {[%emt 00:00:33]} Kb7 {[%clk 00:07:25]} {[%emt
00:00:04]} 38. Ke2 {[%clk 00:03:10]} {[%emt 00:00:02]} c6 {[%clk 00:07:00]}
{[%emt 00:00:30]} 39. Re3 {[%clk 00:02:44]} {[%emt 00:00:32]} Rc7 {[%clk
00:06:48]} {[%emt 00:00:16]} 40. Rc3 {[%clk 00:02:22]} {[%emt 00:00:27]} Kb8
{[%emt 00:03:16]} 41. Rb3 {[%clk 00:00:21]} Ka7 {[%clk 00:05:37]} {[%emt
00:00:10]} 42. Rc3 {[%clk 00:00:23]} {[%emt 00:00:03]} Rf7 {[%clk 00:05:28]}
{[%emt 00:00:14]} 43. Re3 {[%clk 00:00:13]} {[%emt 00:00:15]} b5 {[%clk
00:05:06]} {[%emt 00:00:28]} 44. cxb5 {[%clk 00:00:12]} {[%emt 00:00:07]} cxb5
{[%clk 00:05:09]} {[%emt 00:00:02]} 45. axb5 {[%clk 00:00:16]} Rf3 {[%clk
00:04:55]} {[%emt 00:00:18]} 46. Rd3 {[%clk 00:00:07]} {[%emt 00:00:14]} Rxd3
{[%clk 00:04:57]} {[%emt 00:00:03]} 47. Kxd3 {[%clk 00:00:11]} {[%emt
00:00:01]} Kb6 {[%clk 00:05:01]} 48. Kc4 {[%clk 00:00:16]} {[%emt 00:00:01]} h5
{[%clk 00:05:03]} {[%emt 00:00:03]} 0-1

[Event "Rapid Tournament (RAP)"]
[Site "Biel, Switzerland"]
[Date "2026.07.12"]
[Round "4.10"]
[White "Ghosh, Diptayan"]
[Black "Tkhoruk, Roman"]
[Result "1-0"]
[TimeControl "15 + 5"]
[WhiteTitle "-"]
[BlackTitle "-"]
[WhiteFideId "5045207"]
[BlackFideId "34161589"]
[WhiteElo "2480"]
[BlackElo "2076"]

1. c4 {[%clk 00:15:07]} Nf6 {[%clk 00:15:03]} {[%emt 00:00:06]} 2. Nc3 {[%clk
00:15:10]} {[%emt 00:00:03]} e6 {[%clk 00:15:05]} {[%emt 00:00:05]} 3. e4
{[%clk 00:15:11]} {[%emt 00:00:02]} Bb4 {[%clk 00:15:03]} {[%emt 00:00:07]} 4.
e5 {[%clk 00:15:10]} {[%emt 00:00:06]} Ng8 {[%clk 00:14:37]} {[%emt 00:00:31]}
5. Qg4 {[%clk 00:15:00]} {[%emt 00:00:15]} Bf8 {[%clk 00:14:39]} {[%emt
00:00:02]} 6. Nf3 {[%clk 00:14:55]} {[%emt 00:00:10]} d5 {[%clk 00:14:42]}
{[%emt 00:00:02]} 7. d4 {[%clk 00:14:38]} {[%emt 00:00:23]} h6 {[%clk
00:14:23]} {[%emt 00:00:24]} 8. Be2 {[%clk 00:14:19]} {[%emt 00:00:23]} Ne7
{[%clk 00:14:24]} {[%emt 00:00:05]} 9. O-O {[%clk 00:14:15]} {[%emt 00:00:09]}
dxc4 {[%clk 00:14:15]} {[%emt 00:00:14]} 10. Bxc4 {[%clk 00:14:16]} {[%emt
00:00:03]} Nd5 {[%clk 00:14:17]} {[%emt 00:00:04]} 11. Rd1 {[%clk 00:13:43]}
{[%emt 00:00:37]} c6 {[%clk 00:14:00]} {[%emt 00:00:22]} 12. Bb3 {[%clk
00:13:30]} {[%emt 00:00:19]} Na6 {[%clk 00:12:36]} {[%emt 00:01:29]} 13. Ne4
{[%clk 00:13:08]} {[%emt 00:00:26]} Nac7 {[%clk 00:12:07]} {[%emt 00:00:35]} 14.
Nd6+ {[%clk 00:12:18]} {[%emt 00:00:55]} Bxd6 {[%clk 00:11:41]} {[%emt
00:00:31]} 15. Qxg7 {[%clk 00:12:11]} {[%emt 00:00:11]} Rf8 {[%clk 00:11:04]}
{[%emt 00:00:43]} 16. exd6 {[%clk 00:12:10]} {[%emt 00:00:06]} Qxd6 {[%clk
00:11:02]} {[%emt 00:00:07]} 17. Bxh6 {[%clk 00:12:11]} {[%emt 00:00:03]} b6
{[%clk 00:10:55]} {[%emt 00:00:13]} 18. Ng5 {[%clk 00:10:56]} {[%emt 00:01:19]}
Bb7 {[%clk 00:10:33]} {[%emt 00:00:28]} 19. Nh7 {[%clk 00:10:36]} {[%emt
00:00:25]} O-O-O {[%clk 00:10:01]} {[%emt 00:00:37]} 20. Nxf8 {[%clk 00:10:37]}
{[%emt 00:00:04]} Ne8 {[%clk 00:10:04]} {[%emt 00:00:02]} 21. Qxf7 {[%clk
00:10:33]} {[%emt 00:00:09]} 1-0

[Event "Rapid Tournament (RAP)"]
[Site "Biel, Switzerland"]
[Date "2026.07.12"]
[Round "4.11"]
[White "Cherniaev, Alexander"]
[Black "Egli, Urs"]
[Result "1-0"]
[TimeControl "15 + 5"]
[WhiteTitle "-"]
[BlackTitle "-"]
[WhiteFideId "4117301"]
[BlackFideId "1306685"]
[WhiteElo "2299"]
[BlackElo "1964"]

1. e4 {[%clk 00:15:05]} {[%emt 00:00:02]} g6 {[%clk 00:15:05]} {[%emt
00:00:01]} 2. Nc3 {[%clk 00:15:04]} {[%emt 00:00:07]} Bg7 {[%clk 00:15:05]}
{[%emt 00:00:02]} 3. f4 {[%clk 00:15:04]} {[%emt 00:00:03]} c5 {[%clk
00:14:59]} {[%emt 00:00:11]} 4. Nf3 {[%clk 00:15:03]} {[%emt 00:00:06]} Nc6
{[%clk 00:14:59]} {[%emt 00:00:04]} 5. Bb5 {[%clk 00:14:12]} {[%emt 00:00:57]}
a6 {[%clk 00:14:53]} {[%emt 00:00:10]} 6. Bxc6 {[%clk 00:14:12]} {[%emt
00:00:04]} bxc6 {[%clk 00:14:51]} {[%emt 00:00:07]} 7. d3 {[%clk 00:14:09]}
{[%emt 00:00:08]} d5 {[%clk 00:14:19]} {[%emt 00:00:36]} 8. e5 {[%clk
00:13:14]} {[%emt 00:01:00]} Bg4 {[%clk 00:13:53]} {[%emt 00:00:31]} 9. O-O
{[%clk 00:13:10]} {[%emt 00:00:09]} e6 {[%clk 00:13:30]} {[%emt 00:00:28]} 10.
Na4 {[%clk 00:13:05]} {[%emt 00:00:10]} Qe7 {[%clk 00:12:58]} {[%emt 00:00:36]}
11. Qe1 {[%clk 00:09:19]} {[%emt 00:03:53]} Bxf3 {[%clk 00:12:17]} {[%emt
00:00:46]} 12. Rxf3 {[%clk 00:09:19]} {[%emt 00:00:02]} Nh6 {[%clk 00:11:53]}
{[%emt 00:00:28]} 13. b3 {[%clk 00:08:42]} {[%emt 00:00:43]} Nf5 {[%clk
00:11:40]} {[%emt 00:00:17]} 14. Ba3 {[%clk 00:08:36]} {[%emt 00:00:12]} O-O
{[%clk 00:11:20]} {[%emt 00:00:24]} 15. Bxc5 {[%clk 00:08:36]} {[%emt
00:00:03]} Qd7 {[%clk 00:10:46]} {[%emt 00:00:39]} 16. Nb6 {[%clk 00:08:14]}
{[%emt 00:00:26]} Qc7 {[%clk 00:10:34]} {[%emt 00:00:17]} 17. Nxa8 {[%clk
00:08:14]} {[%emt 00:00:04]} Rxa8 {[%clk 00:10:34]} {[%emt 00:00:02]} 18. g4
{[%clk 00:08:09]} {[%emt 00:00:11]} Ne7 {[%clk 00:10:34]} {[%emt 00:00:03]} 19.
d4 {[%clk 00:08:09]} {[%emt 00:00:03]} Rb8 {[%clk 00:10:14]} {[%emt 00:00:25]}
20. a4 {[%clk 00:08:09]} {[%emt 00:00:03]} Qd7 {[%clk 00:09:56]} {[%emt
00:00:21]} 21. Qh4 {[%clk 00:08:09]} {[%emt 00:00:06]} Re8 {[%clk 00:08:31]}
{[%emt 00:01:29]} 22. Raf1 {[%clk 00:08:08]} {[%emt 00:00:07]} h5 {[%clk
00:08:19]} {[%emt 00:00:18]} 23. Bxe7 {[%clk 00:07:54]} {[%emt 00:00:19]} hxg4
{[%clk 00:08:15]} {[%emt 00:00:08]} 24. Qxg4 {[%clk 00:07:54]} {[%emt
00:00:04]} Qxe7 {[%clk 00:08:11]} {[%emt 00:00:09]} 25. h4 {[%clk 00:07:54]}
{[%emt 00:00:05]} c5 {[%clk 00:07:44]} {[%emt 00:00:32]} 26. dxc5 {[%clk
00:07:43]} {[%emt 00:00:16]} Qxc5+ {[%clk 00:07:44]} {[%emt 00:00:04]} 27. R1f2
{[%clk 00:07:43]} {[%emt 00:00:01]} f6 {[%clk 00:07:05]} {[%emt 00:00:44]} 28.
exf6 {[%clk 00:07:33]} {[%emt 00:00:15]} Bxf6 {[%clk 00:07:04]} {[%emt
00:00:05]} 29. Qxg6+ {[%clk 00:07:33]} {[%emt 00:00:02]} 1-0

[Event "Rapid Tournament (RAP)"]
[Site "Biel, Switzerland"]
[Date "2026.07.12"]
[Round "4.12"]
[White "Kukushkin, Ivan"]
[Black "Cao, Qingfeng"]
[Result "0-1"]
[TimeControl "15 + 5"]
[WhiteTitle "-"]
[BlackTitle "-"]
[WhiteFideId "11634103"]
[BlackFideId "8627568"]
[WhiteElo "2186"]
[BlackElo "2265"]

1. e4 {[%clk 00:15:06]} {[%emt 00:00:04]} c5 {[%clk 00:15:00]} {[%emt
00:00:10]} 2. Nf3 {[%clk 00:15:09]} {[%emt 00:00:02]} g6 {[%clk 00:15:01]}
{[%emt 00:00:05]} 3. d4 {[%clk 00:15:11]} {[%emt 00:00:02]} cxd4 {[%clk
00:15:04]} {[%emt 00:00:02]} 4. Nxd4 {[%clk 00:15:14]} {[%emt 00:00:02]} Nc6
{[%clk 00:15:07]} {[%emt 00:00:02]} 5. Nc3 {[%clk 00:15:17]} {[%emt 00:00:03]}
Bg7 {[%clk 00:15:09]} {[%emt 00:00:02]} 6. Be3 {[%clk 00:15:20]} {[%emt
00:00:02]} Nf6 {[%clk 00:15:12]} {[%emt 00:00:02]} 7. Bc4 {[%clk 00:15:23]}
{[%emt 00:00:02]} O-O {[%clk 00:15:14]} {[%emt 00:00:03]} 8. Bb3 {[%clk
00:15:27]} {[%emt 00:00:01]} d6 {[%clk 00:15:14]} {[%emt 00:00:05]} 9. h3
{[%clk 00:15:26]} {[%emt 00:00:06]} Qa5 {[%clk 00:14:49]} {[%emt 00:00:29]} 10.
O-O {[%clk 00:15:27]} {[%emt 00:00:04]} Nxd4 {[%clk 00:14:34]} {[%emt
00:00:21]} 11. Bxd4 {[%clk 00:15:26]} {[%emt 00:00:06]} Be6 {[%clk 00:14:30]}
{[%emt 00:00:08]} 12. Nd5 {[%clk 00:15:17]} {[%emt 00:00:15]} Bxd5 {[%clk
00:13:57]} {[%emt 00:00:38]} 13. exd5 {[%clk 00:15:17]} {[%emt 00:00:05]} Rfe8
{[%clk 00:12:40]} {[%emt 00:01:22]} 14. Bc3 {[%clk 00:15:09]} {[%emt 00:00:13]}
Qc5 {[%clk 00:12:05]} {[%emt 00:00:39]} 15. Bd4 {[%clk 00:14:42]} {[%emt
00:00:32]} Qa5 {[%clk 00:11:03]} {[%emt 00:01:07]} 16. Bc3 {[%clk 00:14:22]}
{[%emt 00:00:26]} Qc7 {[%clk 00:10:31]} {[%emt 00:00:37]} 17. Re1 {[%clk
00:14:10]} {[%emt 00:00:18]} b5 {[%clk 00:08:50]} {[%emt 00:01:45]} 18. a4
{[%clk 00:13:33]} {[%emt 00:00:41]} a6 {[%clk 00:07:43]} {[%emt 00:01:13]} 19.
axb5 {[%clk 00:13:00]} {[%emt 00:00:38]} axb5 {[%clk 00:07:46]} {[%emt
00:00:02]} 20. Rxa8 {[%clk 00:13:03]} {[%emt 00:00:01]} Rxa8 {[%clk 00:07:50]}
{[%emt 00:00:02]} 21. Qe2 {[%clk 00:13:07]} Qb6 {[%clk 00:07:51]} {[%emt
00:00:04]} 22. Qd2 {[%clk 00:10:55]} {[%emt 00:02:17]} Qb7 {[%clk 00:06:49]}
{[%emt 00:01:06]} 23. Qd3 {[%clk 00:08:14]} {[%emt 00:02:47]} Ne8 {[%clk
00:06:28]} {[%emt 00:00:26]} 24. Qe3 {[%clk 00:07:59]} {[%emt 00:00:20]} Bxc3
{[%clk 00:06:12]} {[%emt 00:00:21]} 25. bxc3 {[%clk 00:07:55]} {[%emt
00:00:09]} Ra7 {[%clk 00:06:12]} {[%emt 00:00:05]} 26. Rb1 {[%clk 00:07:36]}
{[%emt 00:00:23]} Qc7 {[%clk 00:06:04]} {[%emt 00:00:14]} 27. c4 {[%clk
00:07:01]} {[%emt 00:00:40]} b4 {[%clk 00:05:40]} {[%emt 00:00:29]} 28. c3
{[%clk 00:06:53]} {[%emt 00:00:12]} bxc3 {[%clk 00:05:30]} {[%emt 00:00:15]} 29.
Qxc3 {[%clk 00:06:56]} {[%emt 00:00:03]} Nf6 {[%clk 00:05:34]} {[%emt
00:00:01]} 30. Rc1 {[%clk 00:06:56]} {[%emt 00:00:05]} Qc5 {[%clk 00:05:36]}
{[%emt 00:00:02]} 31. Qe1 {[%clk 00:06:41]} {[%emt 00:00:20]} h5 {[%clk
00:05:28]} {[%emt 00:00:13]} 32. Bc2 {[%clk 00:06:27]} {[%emt 00:00:20]} Kg7
{[%clk 00:05:22]} {[%emt 00:00:11]} 33. Bd3 {[%clk 00:06:21]} {[%emt 00:00:11]}
Ra2 {[%clk 00:05:00]} {[%emt 00:00:26]} 34. Rb1 {[%clk 00:05:18]} {[%emt
00:01:08]} Qd4 {[%clk 00:04:51]} {[%emt 00:00:15]} 35. Rd1 {[%clk 00:04:23]}
{[%emt 00:01:01]} Qf4 {[%clk 00:04:40]} {[%emt 00:00:14]} 36. Rb1 {[%clk
00:04:05]} {[%emt 00:00:24]} Nd7 {[%clk 00:03:42]} {[%emt 00:01:03]} 37. Bf1
{[%clk 00:03:12]} {[%emt 00:00:57]} Ne5 {[%clk 00:03:42]} {[%emt 00:00:05]} 38.
Ra1 {[%clk 00:03:00]} {[%emt 00:00:18]} Rc2 {[%clk 00:03:32]} {[%emt 00:00:14]}
39. Ra4 {[%clk 00:02:58]} {[%emt 00:00:08]} Qg5 {[%clk 00:02:40]} {[%emt
00:00:57]} 40. Ra3 {[%clk 00:02:14]} {[%emt 00:00:50]} Qc1 {[%clk 00:02:18]}
{[%emt 00:00:26]} 41. Re3 {[%clk 00:02:06]} {[%emt 00:00:13]} Qxe1 {[%clk
00:02:12]} {[%emt 00:00:11]} 42. Rxe1 {[%clk 00:02:10]} {[%emt 00:00:02]} g5
{[%clk 00:02:14]} {[%emt 00:00:02]} 43. h4 {[%clk 00:01:54]} {[%emt 00:00:21]}
g4 {[%clk 00:02:07]} {[%emt 00:00:13]} 44. Re4 {[%clk 00:01:47]} {[%emt
00:00:11]} f5 {[%clk 00:01:58]} {[%emt 00:00:14]} 45. Re2 {[%clk 00:01:24]}
{[%emt 00:00:27]} Rc1 {[%clk 00:01:49]} {[%emt 00:00:14]} 46. g3 {[%clk
00:01:18]} {[%emt 00:00:12]} f4 {[%clk 00:01:46]} {[%emt 00:00:08]} 47. gxf4
{[%clk 00:01:17]} {[%emt 00:00:06]} Nf3+ {[%clk 00:01:50]} 48. Kg2 {[%clk
00:01:16]} {[%emt 00:00:06]} Nxh4+ {[%clk 00:01:52]} {[%emt 00:00:04]} 49. Kg1
{[%clk 00:01:07]} {[%emt 00:00:14]} Kf7 {[%clk 00:01:37]} {[%emt 00:00:19]} 50.
f3 {[%clk 00:00:53]} {[%emt 00:00:20]} g3 {[%clk 00:01:34]} {[%emt 00:00:08]}
51. c5 {[%clk 00:00:43]} {[%emt 00:00:16]} dxc5 {[%clk 00:01:35]} {[%emt
00:00:03]} 52. d6 {[%clk 00:00:36]} {[%emt 00:00:11]} exd6 {[%clk 00:01:38]}
{[%emt 00:00:02]} 53. f5 {[%clk 00:00:40]} {[%emt 00:00:02]} g2 {[%clk
00:01:36]} {[%emt 00:00:06]} 0-1